bitfinex/quotes_ETHUSD_20250929
["timestamp","ask_amount","ask_price","bid_price","bid_amount"]
[1759104507701,0.4469,4150.5,4150.4,8.49340632]
[1759104508064,0.001,4150.5,4150.4,8.49340632]
[1759104509199,0.001,4150.5,4150.4,2.60950632]
[1759104509399,0.001,4150.5,4150.4,2.40940632]
[1759104509570,0.6946,4150.5,4150.4,6.48640632]
[1759104509771,0.6946,4150.5,4150.4,8.50540632]
[1759104509970,0.6946,4150.5,4150.4,2.40940632]
[1759104510281,0.6946,4150.5,4150.4,8.50540632]
[1759104510463,0.001,4150.5,4150.4,8.50540632]
[1759104511290,0.001,4150.5,4150.4,6.49640632]
[1759104511494,0.6946,4150.5,4150.4,8.50440632]
[1759104512504,0.001,4150.5,4150.4,8.50440632]
[1759104513311,0.6946,4150.5,4150.4,8.50440632]
[1759104514206,0.6946,4150.5,4150.4,2.40940632]
[1759104514613,0.001,4150.5,4150.4,6.49740632]
[1759104519317,0.001,4150.5,4150.4,6.49640632]
[1759104519501,0.001,4150.5,4150.4,8.62440632]
[1759104519721,0.4678,4150.5,4150.4,8.62440632]
[1759104520235,0.001,4150.5,4150.4,8.62440632]
[1759104521039,0.4678,4150.5,4150.4,8.62440632]
[1759104522542,0.6967,4150.5,4150.4,8.62440632]
[1759104522948,0.4678,4150.5,4150.4,8.62440632]
[1759104523117,0.001,4150.5,4150.4,8.62440632]
[1759104525325,0.001,4150.5,4150.4,8.61740632]
[1759104525766,0.6967,4150.5,4150.4,8.61740632]
[1759104526049,0.6967,4150.5,4150.4,2.52940632]
[1759104526212,0.4678,4150.5,4150.4,8.61740632]
[1759104526421,0.6967,4150.5,4150.4,8.61640632]
[1759104527751,0.6967,4150.5,4150.4,8.61540632]
[1759104528332,0.6967,4150.5,4150.4,2.52940632]
[1759104528538,0.6967,4150.5,4150.4,8.61540632]
[1759104528721,0.001,4150.5,4150.4,8.61540632]
[1759104528922,0.001,4150.5,4150.4,8.81550632]
[1759104529362,0.001,4150.5,4150.4,8.61540632]
[1759104530163,0.001,4150.5,4150.4,2.52940632]
[1759104530363,0.6967,4150.5,4150.4,8.61440632]
[1759104530658,0.001,4150.5,4150.4,8.61440632]
[1759104530820,0.001,4150.5,4150.4,8.81450632]
[1759104531222,0.001,4150.5,4150.4,8.61340632]
[1759104532256,0.001,4150.5,4150.4,6.60540632]
[1759104532456,0.001,4150.5,4150.4,8.61340632]
[1759104533329,0.001,4150.5,4150.4,11.81350632]
[1759104534358,0.001,4150.5,4150.4,5.72950632]
[1759104534561,0.001,4150.5,4150.4,11.61340632]
[1759104534733,0.001,4150.5,4150.4,5.52940632]
[1759104534933,0.6967,4150.5,4150.4,8.61340632]
[1759104535755,0.6967,4150.5,4150.4,2.40940632]
[1759104535955,0.6967,4150.5,4150.4,6.50950038]
[1759104536259,0.6967,4150.5,4150.3,0.002]
[1759104536437,0.6967,4150.5,4150.0,2.40963855]
[1759104536635,0.6957,4150.4,4150.1,2.678]
[1759104536836,0.001,4150.5,4149.8,0.002]
[1759104536837,0.6957,4150.3,4149.8,0.002]
[1759104537041,0.6957,4150.3,4149.4,2.4119809]
[1759104537042,0.02407508,4150.2,4149.4,2.01]
[1759104537256,0.792,4150.0,4149.4,0.002]
[1759104537434,0.792,4149.8,4149.4,1.871]
[1759104537758,0.6957,4149.7,4149.4,1.871]
[1759104537959,0.6957,4149.6,4149.4,1.871]
[1759104538158,0.6957,4149.5,4149.4,1.871]
[1759104538562,0.6957,4149.5,4149.4,2.40998698]
[1759104538766,0.6957,4149.5,4149.3,4.079]
[1759104538962,0.6957,4149.4,4149.3,6.28503748]
[1759104539158,0.6957,4149.4,4149.3,3.875]
[1759104539358,0.6957,4149.4,4149.3,6.28504506]
[1759104540647,0.6957,4149.4,4149.3,3.875]
[1759104540967,0.6957,4149.4,4148.6,2.008]
[1759104541156,0.6957,4149.3,4148.8,2.41033551]
[1759104541373,0.6957,4149.2,4148.7,4.078]
[1759104541541,0.792,4149.8,4148.7,4.078]
[1759104541740,0.792,4149.6,4149.3,0.002]
[1759104541969,2.40998698,4149.4,4149.3,0.002]
[1759104542171,3.20198698,4149.4,4149.3,0.002]
[1759104542363,3.89768698,4149.4,4149.3,0.002]
[1759104542667,6.89768698,4149.4,4149.3,0.002]
[1759104542846,7.87102817,4149.4,4149.3,0.002]
[1759104543046,10.14833217,4149.4,4149.3,0.002]
[1759104543247,10.92215617,4149.4,4149.3,0.002]
[1759104544070,35.45586529,4149.4,4149.3,0.002]
[1759104544273,32.92871929,4149.4,4149.3,0.002]
[1759104545155,34.35980029,4149.4,4149.3,0.002]
[1759104545355,21.28100929,4149.4,4149.3,0.002]
[1759104545664,19.02742829,4149.4,4149.3,0.002]
[1759104545839,11.60135129,4149.4,4149.3,0.002]
[1759104546359,8.24916129,4149.4,4149.3,0.002]
[1759104546566,22.21089829,4149.4,4149.3,0.002]
[1759104546778,22.03789829,4149.4,4149.3,0.002]
[1759104546978,22.95774329,4149.4,4149.3,0.002]
[1759104547184,36.11901629,4149.4,4149.3,0.002]
[1759104547742,35.74088317,4149.4,4149.3,0.002]
[1759104548174,24.27650317,4149.4,4149.3,0.002]
[1759104548379,21.08650917,4149.4,4149.3,0.002]
[1759104548577,10.25517817,4149.4,4149.3,0.002]
[1759104549479,29.03292317,4149.4,4149.3,0.002]
[1759104549694,34.03075717,4149.4,4149.3,0.002]
[1759104550393,23.98939517,4149.4,4149.3,0.002]
[1759104550958,18.93670042,4149.4,4149.3,0.002]
[1759104551280,17.22149142,4149.4,4149.3,0.002]
[1759104551480,16.02949142,4149.4,4149.3,0.002]
[1759104551998,9.60246244,4149.4,4149.3,0.002]
[1759104552297,4.6538585,4147.9,4146.1,0.002]
[1759104552494,4.65409101,4147.5,4146.1,0.002]
[1759104552796,0.792,4146.9,4146.1,0.002]
[1759104553000,3.792,4146.7,4146.1,0.002]
[1759104554395,35.1904764,4146.7,4146.1,0.002]
[1759104554594,35.16033195,4146.7,4146.1,0.002]
[1759104556966,33.28181795,4146.7,4146.1,0.002]
[1759104557167,16.3067112,4146.7,4146.1,0.002]
[1759104557699,10.21837403,4146.7,4146.1,0.002]
[1759104557897,18.0699202,4146.7,4146.1,0.002]
[1759104558487,15.65836403,4146.7,4146.1,0.002]
[1759104559098,7.38347578,4146.7,4146.1,0.002]
[1759104559268,7.85087578,4146.7,4146.1,0.002]
[1759104559470,7.713755,4146.7,4146.1,0.002]
[1759104559678,8.505755,4146.7,4146.1,0.002]
[1759104561069,7.797155,4146.7,4146.1,0.002]
[1759104561269,6.050142,4146.7,4146.2,0.2021]
[1759104561494,7.2654562,4146.7,4146.1,0.002]
[1759104561805,7.2654562,4146.7,4146.1,0.2041]
[1759104561984,7.2894422,4146.7,4146.2,0.2021]
[1759104562303,3.792,4146.7,4146.2,0.2021]
[1759104562604,4.20048478,4146.7,4146.2,2.61394649]
[1759104562902,4.17034033,4146.7,4146.3,2.41176651]
[1759104563474,4.20048478,4146.7,4146.2,0.2021]
[1759104564506,4.20048478,4146.7,4146.2,2.61394333]
[1759104564725,3.37834033,4146.7,4146.4,0.01410785]
[1759104564927,0.37834033,4146.7,4146.6,0.20210001]
[1759104565228,3.37834033,4146.7,4146.6,0.20210001]
[1759104565397,0.37834033,4146.7,4146.6,2.62582161]
[1759104565597,0.37834033,4146.7,4146.6,2.64032161]
[1759104566237,0.2412,4148.0,4146.6,0.21420728]
[1759104566533,0.37829972,4147.4,4147.0,2.4113661]
[1759104566828,0.37829972,4147.4,4147.1,2.61340487]
[1759104566829,3.37829972,4147.4,4147.1,2.61340487]
[1759104567330,0.37829972,4147.4,4147.2,0.2021]
[1759104567510,0.37829972,4147.4,4147.2,0.01209855]
[1759104567837,0.37829972,4147.4,4146.7,2.61365497]
[1759104568626,4.097,4147.5,4147.0,2.41135433]
[1759104568817,3.0,4147.6,4147.1,0.2166]
[1759104569004,3.0,4147.6,4147.1,2.62791712]
[1759104569199,3.0,4147.6,4147.2,0.2021]
[1759104570426,3.0,4147.6,4146.9,0.2021]
[1759104570935,0.792,4147.4,4146.6,0.20210001]
[1759104571128,0.792,4147.2,4146.6,1e-08]
[1759104571327,0.792,4147.0,4146.6,1e-08]
[1759104571815,0.4674,4146.9,4146.6,1e-08]
[1759104572130,0.7086,4146.9,4146.6,1e-08]
[1759104573502,0.37829818,4147.1,4146.7,2.62814291]
[1759104573697,0.37829818,4147.1,4146.8,0.2021]
[1759104574427,0.37829818,4147.1,4146.6,1e-08]
[1759104574620,0.7086,4147.0,4146.6,1e-08]
[1759104575012,1.5006,4147.0,4146.6,1e-08]
[1759104575215,0.7086,4146.9,4146.6,1e-08]
[1759104576216,0.7086,4146.8,4146.6,1e-08]
[1759104576616,0.7086,4146.7,4146.6,1e-08]
[1759104577609,4.098,4146.9,4146.6,1e-08]
[1759104577935,1.63051209,4147.0,4146.6,1e-08]
[1759104578502,0.37829818,4147.1,4146.6,1e-08]
[1759104578708,0.792,4147.3,4146.7,0.2021]
[1759104578930,0.82214009,4147.3,4146.6,1e-08]
[1759104579133,0.82214009,4147.3,4146.6,2.41156734]
[1759104579308,0.82214009,4147.3,4146.7,2.4115518]
[1759104579509,3.4452,4147.4,4146.8,2.42359094]
[1759104579710,3.001,4147.4,4146.7,0.2021]
[1759104580051,3.792,4147.2,4146.6,1e-08]
[1759104580251,0.03014154,4147.1,4146.6,1e-08]
[1759104580416,0.70474154,4147.1,4146.6,1e-08]
[1759104580617,0.6746,4147.0,4146.6,1e-08]
[1759104581824,0.001,4147.4,4146.7,0.2021]
[1759104582060,0.001,4147.4,4146.9,2.41139511]
[1759104582354,0.001,4147.4,4146.7,0.2021]
[1759104582516,0.001,4147.4,4146.9,2.41141308]
[1759104582848,0.001,4147.4,4146.8,2.41148528]
[1759104583243,0.37826057,4147.3,4146.8,2.41148528]
[1759104583490,0.6746,4147.2,4146.6,1e-08]
[1759104583826,0.6746,4147.2,4146.6,2.41159835]
[1759104584027,0.6746,4147.2,4146.7,2.41152733]
[1759104584227,0.6746,4147.2,4146.8,2.41145574]
[1759104584428,0.6746,4147.2,4146.6,2.41161005]
[1759104584429,0.37826057,4147.3,4146.7,2.41155617]
[1759104584626,0.37826057,4147.3,4146.7,0.2021]
[1759104584833,0.001,4147.4,4147.3,2.41120729]
[1759104585355,0.001,4147.4,4147.3,8.85980729]
[1759104586658,0.001,4147.4,4147.3,2.74780729]
[1759104586860,0.001,4147.4,4147.3,8.85980729]
[1759104588372,0.001,4147.4,4147.3,11.85980729]
[1759104589385,0.001,4147.4,4147.3,12.65180729]
[1759104589738,1e-08,4148.3,4148.2,2.41068415]
[1759104589957,1e-08,4148.3,4148.2,11.52268415]
[1759104590144,1e-08,4148.3,4148.2,11.85928415]
[1759104590934,1e-08,4148.3,4148.2,5.74728415]
[1759104591137,1e-08,4148.3,4148.2,11.85828415]
[1759104592168,1e-08,4148.3,4148.2,11.85728415]
[1759104595976,1e-08,4148.3,4148.2,12.64928415]
[1759104598660,0.793,4151.4,4149.8,2.40975468]
[1759104598863,0.2314,4150.3,4149.8,8.52481546]
[1759104599197,0.2314,4150.3,4149.8,8.51275468]
[1759104599368,0.4452,4149.9,4149.8,8.51275468]
[1759104599683,0.001,4149.9,4149.8,8.51275468]
[1759104600253,0.001,4149.9,4149.8,8.83485468]
[1759104600455,0.001,4149.9,4149.8,11.83485468]
[1759104600791,0.001,4151.4,4150.4,2.40940632]
[1759104600792,1e-08,4150.5,4150.4,2.40940632]
[1759104600967,1e-08,4150.5,4150.4,6.62340632]
[1759104601758,1e-08,4150.5,4150.4,2.52940632]
[1759104601959,1e-08,4150.5,4150.4,8.63240632]
[1759104602168,1e-08,4150.5,4150.4,8.63140632]
[1759104605278,1e-08,4150.5,4150.4,2.52940632]
[1759104605279,0.67460001,4150.5,4150.4,2.52940632]
[1759104605681,0.67460001,4150.5,4150.4,8.62740632]
[1759104606568,1e-08,4150.5,4150.4,8.62740632]
[1759104606800,1e-08,4150.5,4150.4,2.52940632]
[1759104607006,1e-08,4150.5,4150.4,8.62740632]
[1759104607670,0.44420001,4150.5,4150.4,8.62740632]
[1759104607870,0.67460001,4150.5,4150.4,8.62740632]
[1759104608267,0.67460001,4150.5,4150.4,2.52940632]
[1759104608467,0.67460001,4150.5,4150.4,6.49740632]
[1759104609081,0.67460001,4150.5,4150.2,2.128]
[1759104609423,0.7045,4150.4,4150.3,4.088]
[1759104609570,0.7045,4150.4,4150.3,6.49746437]
[1759104611222,0.7055,4150.4,4150.3,6.49746437]
[1759104612482,0.7055,4150.4,4150.3,2.40946437]
[1759104612694,0.7055,4150.4,4150.3,6.49446437]
[1759104613696,0.7055,4150.4,4150.3,2.40946437]
[1759104613919,0.7055,4150.4,4150.3,6.49446437]
[1759104615181,0.7055,4150.4,4150.3,6.49346437]
[1759104615402,0.7055,4150.4,4150.3,6.49146437]
[1759104616295,0.7055,4150.4,4150.3,2.40946437]
[1759104616504,0.7055,4150.4,4150.3,6.49146437]
[1759104617609,0.7055,4150.4,4150.3,2.40946437]
[1759104617816,0.7055,4150.4,4150.3,6.49046437]
[1759104618611,0.7055,4150.4,4150.3,6.48946437]
[1759104619802,0.7055,4150.4,4150.3,2.40946437]
[1759104619999,0.7055,4150.4,4150.3,6.48946437]
[1759104621004,0.001,4150.4,4150.3,6.48946437]
[1759104622220,0.4382,4150.4,4150.3,6.48946437]
[1759104622790,0.001,4150.4,4150.3,6.48946437]
[1759104622987,0.001,4150.4,4150.3,6.81156437]
[1759104623334,0.001,4150.4,4150.3,6.82606437]
[1759104624923,0.001,4150.4,4150.3,9.82606437]
[1759104625636,1e-08,4151.4,4150.9,2.40910924]
[1759104625843,1e-08,4151.4,4151.3,0.12]
[1759104626010,1e-08,4151.4,4151.3,6.60888396]
[1759104626318,1e-08,4151.4,4151.3,10.31860321]
[1759104626488,1e-08,4151.4,4151.3,9.82548396]
[1759104627091,1e-08,4151.4,4151.3,5.74548396]
[1759104627286,1e-08,4151.4,4151.3,11.83448396]
[1759104628091,1e-08,4151.4,4151.3,12.62648396]
[1759104628418,1e-08,4151.4,4151.3,13.10869328]
[1759104629010,1e-08,4151.4,4151.3,6.80309328]
[1759104629211,1e-08,4151.4,4151.3,5.61098396]
[1759104629401,1e-08,4151.4,4151.3,11.49788396]
[1759104629598,1e-08,4151.4,4151.3,9.49088396]
[1759104629808,1e-08,4151.4,4151.3,11.49888396]
[1759104629988,1e-08,4151.4,4151.3,11.70098396]
[1759104630424,1e-08,4151.4,4151.3,9.49088396]
[1759104630610,1e-08,4151.4,4151.3,5.40888396]
[1759104630812,1e-08,4151.4,4151.3,11.49788396]
[1759104631309,0.66250001,4151.4,4151.3,2.40888396]
[1759104631496,0.66250001,4151.4,4151.3,8.49988396]
[1759104631898,0.43720001,4151.4,4151.3,8.49988396]
[1759104632106,1e-08,4151.4,4151.3,8.49988396]
[1759104633812,1e-08,4151.4,4151.3,8.70198396]
[1759104634014,1e-08,4151.4,4151.3,8.49988396]
[1759104635310,1e-08,4151.4,4151.3,11.49988396]
[1759104636234,1e-08,4151.4,4151.3,5.40888396]
[1759104636412,1e-08,4151.4,4151.3,11.49688396]
[1759104636728,1e-08,4151.4,4151.3,5.40888396]
[1759104636900,0.43720001,4151.4,4151.3,5.40888396]
[1759104637096,0.66250001,4151.4,4151.3,11.50088396]
[1759104637301,1e-08,4151.4,4151.3,11.50088396]
[1759104637632,0.66250001,4151.4,4151.3,11.49988396]
[1759104638506,0.43720001,4151.4,4151.3,9.49288396]
[1759104638706,0.43720001,4151.4,4151.3,11.49988396]
[1759104638927,1e-08,4151.4,4151.3,11.49988396]
[1759104639233,1e-08,4151.4,4151.3,11.61988396]
[1759104639931,1e-08,4151.4,4151.3,11.82198396]
[1759104641699,1e-08,4151.4,4151.3,11.61988396]
[1759104642726,1e-08,4151.4,4151.3,11.61788396]
[1759104643105,1e-08,4151.4,4151.3,5.52888396]
[1759104643317,0.69770001,4151.4,4151.3,5.52888396]
[1759104643517,0.69770001,4151.4,4151.3,4.53588396]
[1759104643828,0.69770001,4151.4,4151.3,8.61688396]
[1759104644006,0.69770001,4151.4,4151.3,2.52888396]
[1759104644212,0.69770001,4151.4,4151.3,8.61788396]
[1759104646803,0.69770001,4151.4,4151.3,2.52888396]
[1759104647034,0.69770001,4151.4,4151.3,8.61488396]
[1759104647903,0.69770001,4151.4,4151.3,8.61688396]
[1759104648606,0.69770001,4151.4,4151.3,6.60988396]
[1759104648803,0.69770001,4151.4,4151.3,8.61688396]
[1759104649834,0.69770001,4151.4,4151.3,6.60888396]
[1759104650003,0.69770001,4151.4,4151.3,8.61588396]
[1759104652417,1e-08,4151.4,4151.3,8.61588396]
[1759104653648,1e-08,4151.4,4151.3,11.81798396]
[1759104654129,1e-08,4151.4,4151.3,11.61588396]
[1759104654721,1e-08,4151.4,4151.3,9.60888396]
[1759104655028,1e-08,4151.4,4151.3,11.61588396]
[1759104657839,1e-08,4151.4,4151.3,5.53088396]
[1759104658053,1e-08,4151.4,4151.3,11.61588396]
[1759104658671,0.44940001,4151.4,4151.3,11.61588396]
[1759104658965,0.69770001,4151.4,4151.3,9.60888396]
[1759104659171,0.69770001,4151.4,4151.3,11.61588396]
[1759104659470,0.69770001,4151.4,4151.3,5.53088396]
[1759104659669,0.69770001,4151.4,4151.3,9.60888396]
[1759104659966,0.69770001,4151.4,4151.3,8.61588396]
[1759104660165,1e-08,4151.4,4151.3,8.61588396]
[1759104660543,0.44940001,4151.4,4151.3,8.61588396]
[1759104660743,0.69770001,4151.4,4151.3,8.61588396]
[1759104661968,0.69770001,4151.4,4151.3,2.53088396]
[1759104662274,0.69770001,4151.4,4151.3,8.61588396]
[1759104662444,0.69770001,4151.4,4151.3,2.53088396]
[1759104662643,0.69770001,4151.4,4151.3,8.61588396]
[1759104664671,0.69770001,4151.4,4151.3,2.41088396]
[1759104664867,0.69770001,4151.4,4151.3,8.49588396]
[1759104665770,0.69770001,4151.4,4151.3,0.002]
[1759104665988,0.69770001,4151.4,4151.3,4.08]
[1759104666143,0.69770001,4151.4,4151.3,6.48888396]
[1759104666345,0.69770001,4151.4,4151.3,2.41088396]
[1759104666546,0.69770001,4151.4,4151.3,0.002]
[1759104666760,0.44940001,4151.4,4151.3,4.08]
[1759104666989,1e-08,4151.4,4151.3,6.48888396]
[1759104667172,0.69770001,4151.4,4151.3,4.08]
[1759104667699,0.792,4151.3,4150.8,0.002]
[1759104667972,0.792,4151.1,4150.4,0.008]
[1759104668278,3.792,4150.9,4150.2,3.929]
[1759104668572,0.792,4150.7,4149.8,0.002]
[1759104668771,0.03011612,4150.6,4150.0,4.078]
[1759104668960,0.792,4150.4,4150.0,4.078]
[1759104669166,0.7118,4150.3,4150.0,4.078]
[1759104669361,0.48375575,4151.7,4150.1,0.012057]
[1759104669362,0.2418,4150.6,4150.1,0.012057]
[1759104669675,1.5038,4151.1,4150.2,2.40947428]
[1759104669984,0.792,4150.9,4149.8,0.002]
[1759104670183,0.792,4150.7,4150.0,4.078]
[1759104670549,0.792,4150.5,4150.0,4.078]
[1759104670780,0.792,4150.5,4149.8,0.002]
[1759104670781,0.7118,4150.4,4149.8,0.002]
[1759104670949,0.7118,4150.4,4150.0,4.08]
[1759104671276,0.89997687,4150.3,4150.0,4.08]
[1759104671458,0.7118,4150.2,4150.0,4.08]
[1759104671676,0.6787,4150.1,4150.0,4.08]
[1759104671877,0.6787,4150.1,4150.0,4.079]
[1759104672354,0.6787,4150.1,4149.9,4.079]
[1759104672556,0.18817687,4150.3,4150.1,2.40953501]
[1759104672762,1.05666873,4150.5,4150.2,4.079]
[1759104672965,0.6787,4150.4,4150.2,6.48846794]
[1759104673165,0.6787,4150.4,4150.2,4.079]
[1759104673697,0.37796873,4150.5,4150.2,4.079]
[1759104673894,0.82326873,4150.5,4150.3,2.40940946]
[1759104674071,0.82326873,4150.5,4150.4,2.40940632]
[1759104674388,1.05666873,4150.5,4150.4,2.40940632]
[1759104675095,1.05666873,4150.5,4150.2,2.40950276]
[1759104675389,0.6787,4150.4,4150.3,4.08]
[1759104675594,0.37796873,4150.5,4149.8,0.002]
[1759104675797,0.2334,4150.3,4149.9,4.081]
[1759104675968,0.4453,4150.4,4149.9,4.081]
[1759104675969,0.37796873,4150.5,4150.2,2.40947564]
[1759104676366,0.37796873,4150.5,4149.8,0.002]
[1759104676367,0.37796873,4150.5,4150.4,2.40940632]
[1759104676571,0.4453,4151.0,4150.4,2.40940632]
[1759104676572,0.2334,4150.8,4150.4,2.40940632]
[1759104676772,0.6787,4150.8,4150.7,2.40923217]
[1759104676977,0.37794643,4151.0,4150.8,2.4091687]
[1759104677496,0.72481363,4151.6,4150.8,0.01204568]
[1759104677662,1.16135697,4151.9,4150.9,2.73121609]
[1759104677995,1.16135697,4151.9,4151.3,2.40888396]
[1759104677996,0.6797,4151.9,4151.3,2.40888396]
[1759104678197,0.2334,4151.6,4151.3,6.49888396]
[1759104678694,0.001,4151.9,4151.3,6.49888396]
[1759104678896,0.4463,4151.9,4151.3,6.49888396]
[1759104679099,0.6797,4151.9,4151.3,6.49888396]
[1759104680596,0.001,4151.9,4151.3,6.70098396]
[1759104680805,0.001,4151.9,4151.3,6.72948396]
[1759104680997,0.001,4151.9,4151.3,6.70098396]
[1759104681170,0.001,4151.9,4151.3,6.72948396]
[1759104682377,0.001,4151.9,4151.3,9.72948396]
[1759104683076,0.001,4151.9,4151.3,9.49788396]
[1759104683277,0.44530001,4151.4,4151.3,2.40888396]
[1759104683474,0.67870001,4151.4,4151.3,6.49788396]
[1759104684478,0.67870001,4151.4,4151.3,2.40888396]
[1759104684675,0.67870001,4151.4,4151.3,6.49688396]
[1759104685070,0.67870001,4151.4,4151.3,2.40888396]
[1759104685275,0.792,4151.3,4150.8,0.002]
[1759104685594,0.22627,4151.2,4150.9,4.087]
[1759104685905,0.6787,4151.1,4151.0,6.50305805]
[1759104686571,0.23340001,4151.4,4151.3,2.40888396]
[1759104686776,1e-08,4151.4,4151.3,2.40888396]
[1759104687005,1e-08,4151.4,4151.3,6.50288396]
[1759104691505,1e-08,4151.4,4151.3,6.82498396]
[1759104691710,1e-08,4151.4,4151.3,6.62288396]
[1759104692282,1e-08,4151.4,4151.3,8.62888396]
[1759104692611,1e-08,4151.4,4151.3,2.52888396]
[1759104692808,0.23340001,4151.4,4151.3,2.40888396]
[1759104693009,0.67870001,4151.4,4151.2,2.40892747]
[1759104693327,1e-08,4151.4,4151.2,6.50192745]
[1759104693615,1e-08,4151.4,4151.3,4.093]
[1759104693784,1e-08,4151.4,4150.8,0.002]
[1759104693983,0.03011033,4151.4,4151.0,2.40905661]
[1759104694184,0.03011033,4151.4,4151.1,4.092]
[1759104694519,0.6787,4151.3,4151.1,4.092]
[1759104694720,0.70881177,4151.2,4151.1,4.092]
[1759104694884,0.70881177,4151.2,4150.8,0.002]
[1759104695080,0.70881177,4151.2,4150.9,4.093]
[1759104695285,0.6787,4151.1,4150.9,4.093]
[1759104695523,0.70881322,4151.0,4150.8,0.002]
[1759104695726,21.391533,4150.9,4150.8,0.002]
[1759104695890,24.93175525,4150.9,4150.8,0.002]
[1759104696088,37.26783334,4150.9,4150.8,0.002]
[1759104696313,6.20140632,4150.4,4150.3,0.002]
[1759104696641,3.792,4150.3,4149.9,0.002]
[1759104696820,0.03011903,4150.2,4149.9,0.002]
[1759104697020,0.792,4150.0,4149.9,0.002]
[1759104697339,2.87295448,4150.0,4149.9,0.002]
[1759104697545,3.55165448,4150.0,4149.9,0.002]
[1759104698409,3.64833344,4150.0,4149.9,0.002]
[1759104699543,32.46735444,4150.0,4149.9,0.002]
[1759104699721,34.95539621,4150.0,4149.9,0.002]
[1759104699943,37.36503476,4150.0,4149.9,0.002]
[1759104700308,29.95144421,4150.0,4149.9,0.002]
[1759104700509,26.10204021,4150.0,4149.9,0.002]
[1759104700710,21.07071021,4150.0,4149.9,0.002]
[1759104701013,23.48034876,4150.0,4149.9,0.002]
[1759104701214,19.87871021,4150.0,4149.9,0.002]
[1759104701435,22.28834876,4150.0,4149.9,0.002]
[1759104701609,35.00253776,4150.0,4149.9,0.002]
[1759104701807,35.73094176,4150.0,4149.9,0.002]
[1759104702048,35.73094176,4150.0,4149.8,0.002]
[1759104702049,6.20169661,4149.9,4149.8,1e-08]
[1759104702208,6.20169661,4149.9,4149.4,0.002]
[1759104702209,6.2019289,4149.5,4149.4,0.002]
[1759104702414,0.792,4148.4,4147.7,0.002]
[1759104702732,3.0,4148.5,4147.7,0.002]
[1759104702733,3.792,4148.2,4147.7,0.002]
[1759104703042,20.785268,4148.2,4147.7,0.002]
[1759104703256,4.5097,4148.2,4147.7,0.002]
[1759104703420,5.58104217,4148.2,4147.7,0.002]
[1759104703627,5.95923037,4148.2,4147.7,0.002]
[1759104704309,30.66487437,4148.2,4147.7,0.002]
[1759104704645,33.54815852,4148.2,4147.7,0.002]
[1759104705411,36.23976952,4148.2,4147.7,0.002]
[1759104706323,8.36991452,4148.2,4147.7,0.002]
[1759104706546,36.23976952,4148.2,4147.7,0.002]
[1759104706851,36.71108295,4148.2,4147.7,0.002]
[1759104707353,8.84122795,4148.2,4147.7,0.002]
[1759104707516,36.71108295,4148.2,4147.7,0.002]
[1759104708839,36.33289475,4148.2,4147.7,0.002]
[1759104709211,27.29952775,4148.2,4147.7,0.002]
[1759104709415,30.52314975,4148.2,4147.7,0.002]
[1759104710048,14.4440836,4148.2,4147.7,0.002]
[1759104710254,15.91085432,4148.2,4147.7,0.002]
[1759104710418,30.52493132,4148.2,4147.7,0.002]
[1759104710815,31.78953132,4148.2,4147.7,0.002]
[1759104711414,35.86158132,4148.2,4147.7,0.002]
[1759104712015,36.23981989,4148.2,4147.7,0.002]
[1759104713343,36.73219653,4148.2,4147.7,0.002]
[1759104714322,37.08739953,4148.2,4147.7,0.002]
[1759104714513,9.21754453,4148.2,4147.7,0.002]
[1759104714716,37.08739953,4148.2,4147.7,0.002]
[1759104715929,38.53639953,4148.2,4147.7,0.002]
[1759104718162,38.15816096,4148.2,4147.7,0.002]
[1759104718780,7.65197475,4147.7,4147.6,0.002]
[1759104718954,8.00717775,4147.7,4147.6,0.002]
[1759104719151,35.87703275,4147.7,4147.6,0.002]
[1759104719381,36.59473275,4147.7,4147.6,0.002]
[1759104719988,39.13873275,4147.7,4147.6,0.002]
[1759104720175,39.112895,4147.7,4147.6,0.002]
[1759104720467,30.431065,4147.7,4147.6,0.002]
[1759104720780,17.5743,4147.7,4147.6,0.002]
[1759104721095,32.222102,4147.7,4147.6,0.002]
[1759104721301,15.648902,4147.7,4147.6,0.002]
[1759104721770,16.440902,4147.7,4147.6,0.002]
[1759104721959,27.302911,4147.7,4147.6,0.002]
[1759104722157,25.97248,4147.7,4147.6,0.002]
[1759104722396,25.59774,4147.7,4147.6,0.002]
[1759104722551,25.97603962,4147.7,4147.6,0.002]
[1759104722753,22.29335262,4147.7,4147.6,0.002]
[1759104723089,29.38189862,4147.7,4147.6,0.002]
[1759104723904,21.51635562,4147.7,4147.6,0.002]
[1759104724199,26.68155562,4147.7,4147.6,0.002]
[1759104724758,24.80876362,4147.7,4147.6,0.002]
[1759104724959,37.68699162,4147.7,4147.6,0.002]
[1759104725374,29.13570462,4147.7,4147.6,0.002]
[1759104726089,33.85850862,4147.7,4147.6,0.002]
[1759104726293,7.29095562,4147.7,4147.6,0.002]
[1759104726491,9.70193037,4147.7,4147.6,0.6643]
[1759104726679,13.49393037,4147.7,4147.6,0.2061]
[1759104727390,13.49393037,4147.7,4147.6,0.002]
[1759104727961,26.63868337,4147.7,4147.6,0.002]
[1759104728161,29.15684562,4147.7,4147.6,0.002]
[1759104728581,28.778546,4147.7,4147.6,0.002]
[1759104728791,12.907205,4147.7,4147.6,0.002]
[1759104728991,6.20297475,4147.7,4147.6,0.6534]
[1759104729696,6.20297475,4147.7,4147.6,0.002]
[1759104730011,33.88793375,4147.7,4147.6,0.002]
[1759104730195,33.22531775,4147.7,4147.6,0.002]
[1759104730392,26.73343175,4147.7,4147.6,0.002]
[1759104730690,26.40212375,4147.7,4147.6,0.002]
[1759104731279,10.12571475,4147.7,4147.6,0.002]
[1759104731696,10.50397331,4147.7,4147.6,0.002]
[1759104732401,9.39415611,4147.7,4147.6,0.002]